fUST/lending_fUST_20251015
["ID","MTS","AMOUNT","RATE_DAILY","PERIOD"]
[391318960,1760516369774,-401883.82444507,0.00030456,20]
[391318961,1760516369802,-271332.14489912,0.00030456,20]
[391318962,1760516369827,-3326784.03065581,0.00030456,20]
[391319112,1760516669481,516.27411562,0.0002849,120]
[391319131,1760516948103,-1999.3168,0.00020187,5]
[391319132,1760516948124,-337.760771,0.00020187,2]
[391319133,1760516948145,-414.42472416,0.000202,2]
[391319134,1760516948166,-150.0,0.00020643,2]
[391319135,1760516948188,-120.44811268,0.0002252,2]
[391319192,1760517036195,-150.0,0.00020491,2]
[391319194,1760517036204,-211.31,0.00022354,2]
[391319196,1760517036213,-248.80298682,0.00023213,2]
[391319198,1760517036225,-417.19701318,0.00023213,2]
[391319200,1760517036235,-316.96,0.00024217,2]
[391319202,1760517036245,-300.0,0.00025222,2]
[391319204,1760517036255,-286.22,0.00025223,10]
[391319206,1760517036264,-238.51,0.00025223,10]
[391319208,1760517036274,-550.87110835,0.00025223,2]
[391319210,1760517036286,-963.81953947,0.00025223,2]
[391319212,1760517036297,-1133.91344053,0.00025223,2]
[391319213,1760517036310,-417.16503418,0.00025223,2]
[391319385,1760517038549,-198.76,0.00025223,10]
[391319387,1760517038558,-1938.85176947,0.00025223,2]
[391319389,1760517038570,-585.06367986,0.00025223,2]
[391319393,1760517038607,-351.91826975,0.00025223,2]
[391319439,1760517040636,-1649.80314949,0.00025223,2]
[391319440,1760517040649,-703.23,0.00025233,2]
[391319441,1760517040659,-500.0,0.00025233,14]
[391319442,1760517040669,-1394.34,0.00025233,2]
[391319443,1760517040678,-19976.41599799,0.00025233,2]
[391319444,1760517040687,-152497.89789792,0.00025234,2]
[391319476,1760517046745,-1006.99574123,0.00025234,2]
[391319501,1760517840331,2569.46816379,0.00018905,2]
[391319503,1760517935631,-800.0,0.00019489,2]
[391319505,1760518025112,163.06,0.00030454,60]
[391319506,1760518151177,-574.45401753,0.00019194,2]
[391319507,1760518151198,-1595.29055953,0.00019294,2]
[391319508,1760518151219,-150.0,0.00019489,2]
[391319509,1760518151241,-752.0,0.00019686,2]
[391319510,1760518151260,-172.5,0.00020089,2]
[391319511,1760518151281,-150.0,0.00020641,2]
[391319512,1760518151302,-195.0,0.00020689,2]
[391319513,1760518151322,-217.5,0.00021289,2]
[391319514,1760518151342,-240.0,0.00021889,2]
[391319515,1760518151362,-264.063125,0.00022326,2]
[391319516,1760518151382,-262.5,0.00022489,2]
[391319517,1760518151401,-176.49003426,0.00022518,2]
[391319518,1760518203128,8318.68475317,0.00016247,5]
[391319557,1760518231834,-150.0,0.0002065,2]
[391319559,1760518231845,-271.52,0.00022528,2]
[391319561,1760518231855,-285.0,0.00023089,2]
[391319563,1760518231865,-104.82081695,0.00023689,2]
[391319684,1760518237677,-96.12243605,0.00023689,2]
[391319686,1760518237687,-407.28,0.00024405,2]
[391319688,1760518237697,-1384.53905512,0.00024494,2]
[391319690,1760518237707,-1384.53905512,0.00024709,2]
[391319692,1760518237717,-319.1510223,0.00024747,2]
[391319695,1760518237732,-194.8489777,0.00024747,2]
[391319697,1760518237744,-1130.0,0.00024999,2]
[391319699,1760518237753,-300.0,0.00025,2]
[391319702,1760518237767,-300.0,0.00025,2]
[391319704,1760518237777,-300.0,0.00025,2]
[391319706,1760518237788,-300.0,0.00025,2]
[391319708,1760518237798,-333.46375065,0.00025001,2]
[391319855,1760518239788,-422.32841335,0.00025001,2]
[391319859,1760518239812,-26439.4474016,0.00025001,2]
[391319861,1760518239822,-1384.53905512,0.00025085,2]
[391319862,1760518239832,-165.64,0.00025103,10]
[391319863,1760518239843,-828.2,0.00025103,10]
[391319865,1760518239852,-158.77930483,0.00025113,14]
[391319867,1760518239862,-506.64996572,0.00025113,14]
[391319869,1760518239872,-505.09784278,0.00025113,14]
[391319871,1760518239884,-500.0,0.00025113,14]
[391319873,1760518239894,-500.0,0.00025113,14]
[391319875,1760518239905,-673.92,0.00025113,2]
[391319877,1760518239915,-1336.24,0.00025113,2]
[391319879,1760518239925,-500.0,0.00025113,14]
[391319881,1760518239936,-5226.75276263,0.00025114,2]
[391319883,1760518239947,-1132.298,0.00025114,2]
[391319968,1760518242945,-43027.4216524,0.00025114,2]
[391319969,1760518243000,-8392.93214001,0.00025114,2]
[391319980,1760518292792,580.6494,0.00030454,30]
[391319981,1760518342565,7143.51,0.00030454,60]
[391319982,1760518382885,500.0,0.00030454,60]
[391319983,1760518383133,500.0,0.00030454,60]
[391319984,1760518383383,500.0,0.00030454,60]
[391319985,1760518383743,500.0,0.00030454,60]
[391319986,1760518384009,500.0,0.00030454,60]
[391319987,1760518384247,457.78523862,0.00030454,60]
[391319988,1760518387464,2000.0,0.00030454,30]
[391319989,1760518554753,500.0,0.00030454,60]
[391319990,1760518554981,500.0,0.00030454,60]
[391319991,1760518555308,500.0,0.00030454,60]
[391319992,1760518555564,500.0,0.00030454,60]
[391319993,1760518555815,500.0,0.00030454,60]
[391319994,1760518556057,245.73921081,0.00030454,60]
[391319996,1760518638005,500.0,0.00030454,60]
[391319997,1760518638280,500.0,0.00030454,60]
[391319998,1760518638530,500.0,0.00030454,60]
[391319999,1760518638780,500.0,0.00030454,60]
[391320000,1760518639002,500.0,0.00030454,60]
[391320001,1760518639235,500.0,0.00030454,60]
[391320002,1760518639508,500.0,0.00030454,60]
[391320003,1760518639774,500.0,0.00030454,60]
[391320004,1760518640211,500.0,0.00030454,60]
[391320005,1760518640468,500.0,0.00030454,60]
[391320006,1760518640723,500.0,0.00030454,60]
[391320007,1760518641011,500.0,0.00030454,60]
[391320008,1760518641473,500.0,0.00030454,60]
[391320009,1760518641736,500.0,0.00030454,60]
[391320010,1760518641994,304.78854134,0.00030454,60]
[391320013,1760518831397,200.6308671,0.00030453,60]
[391320046,1760519013676,462.7712,0.00030454,30]
[391320052,1760519088910,328.028428,0.00013699,2]
[391320053,1760519118033,472.62,0.00030454,30]
[391320055,1760519237119,-1341.46993757,0.00019986,2]
[391320057,1760519249115,-1059.35917059,0.00019986,2]
[391320061,1760519263527,247.34579665,0.00030454,60]
[391320069,1760519348118,-35.45845782,0.00019986,2]
[391320070,1760519348149,-328.028428,0.00020187,2]
[391320071,1760519348186,-150.0,0.00020187,2]
[391320072,1760519348206,-151.38257468,0.00020787,2]
[391320243,1760519437853,-21.11742532,0.00020787,2]
[391320244,1760519437862,-189.520182,0.00024121,2]
[391320245,1760519437872,-1008.37833266,0.00024583,2]
[391320246,1760519437888,-1000.0,0.00025,2]
[391320247,1760519437898,-48.47312693,0.00025003,10]
[391320248,1760519437909,-169.13687307,0.00025003,10]
[391320249,1760519437918,-181.34,0.00025003,10]
[391320250,1760519437927,-294.96,0.00025004,3]
[391320251,1760519437936,-884.92,0.00025004,3]
[391320252,1760519437945,-737.95114621,0.00025012,2]
[391320253,1760519437956,-462.04885379,0.00025012,2]
[391320254,1760519437966,-300.0,0.00025012,2]
[391320255,1760519437974,-300.0,0.00025013,2]
[391320256,1760519437983,-1655.04599828,0.00025014,2]
[391320278,1760519474920,855.08784134,0.00030454,120]
[391320282,1760519614352,7906.6,0.00030454,30]
[391320283,1760519619634,500.0,0.00030454,60]
[391320284,1760519619901,500.0,0.00030454,60]
[391320288,1760519745788,500.0,0.00030454,60]
[391320289,1760519794044,229.23315814,0.00030454,60]
[391320290,1760519833768,505.78,0.00030474,60]
[391320291,1760519834009,505.78,0.00030474,60]
[391320292,1760519834277,505.78,0.00030474,60]
[391320293,1760519834521,505.78,0.00030474,60]
[391320294,1760519835156,505.78,0.00030474,60]
[391320295,1760519835716,505.78,0.00030474,60]
[391320296,1760519835985,505.78,0.00030474,60]
[391320297,1760519836261,505.78,0.00030474,60]
[391320298,1760519836534,505.78,0.00030474,60]
[391320299,1760519836776,505.78,0.00030474,60]
[391320300,1760519837013,505.78,0.00030474,60]
[391320301,1760519837266,505.78,0.00030474,60]
[391320302,1760519837540,505.78,0.00030474,60]
[391320303,1760519837784,505.78,0.00030474,60]
[391320304,1760519838020,505.78,0.00030474,60]
[391320305,1760519838283,505.78,0.00030474,60]
[391320306,1760519838524,505.78,0.00030474,60]
[391320307,1760519838771,505.78,0.00030474,60]
[391320308,1760519839016,505.78,0.00030474,60]
[391320309,1760519839266,505.78,0.00030474,60]
[391320310,1760519839500,505.78,0.00030474,60]
[391320311,1760519839781,505.78,0.00030474,60]
[391320312,1760519840066,505.78,0.00030474,60]
[391320313,1760519840303,505.98,0.00030474,60]
[391320314,1760519846264,500.0,0.00030474,60]
[391320315,1760519846457,500.0,0.00030474,60]
[391320316,1760519846702,500.0,0.00030474,60]
[391320317,1760519846966,500.0,0.00030474,60]
[391320318,1760519847253,500.0,0.00030474,60]
[391320319,1760519847532,500.0,0.00030474,60]
[391320320,1760519847792,216.06,0.00030474,60]
[391320330,1760520102829,191.7283137,0.00030474,30]
[391320331,1760520149475,479.79695748,0.00030474,60]
[391320332,1760520202207,500.0,0.00030474,60]
[391320333,1760520202471,500.0,0.00030474,60]
[391320337,1760520244975,360.74509108,0.00030474,60]
[391320345,1760520332147,-470.53482843,0.00023315,2]
[391320346,1760520337207,2678.46318312,0.00030474,120]
[391320347,1760520384778,500.0,0.00030474,60]
[391320348,1760520385056,500.0,0.00030474,60]
[391320349,1760520385289,500.0,0.00030474,60]
[391320350,1760520385533,548.40378406,0.00030474,60]
[391320353,1760520513405,1665.99429524,0.00030474,120]
[391320361,1760520632255,-1873.64856495,0.0002277,2]
[391320362,1760520632267,-240.08234726,0.0002277,2]
[391320363,1760520632275,-200.0,0.0002277,2]
[391320364,1760520632285,-917.37382368,0.00023,2]
[391320365,1760520632293,-160.0,0.00023081,2]
[391320366,1760520632302,-150.0,0.00023315,2]
[391320367,1760520632311,-500.0,0.000234,2]
[391320368,1760520632320,-386.7392963,0.00023551,2]
[391320369,1760520632328,-666.0,0.00023638,2]
[391320370,1760520632337,-129.80453276,0.00023915,2]
[391320493,1760520637996,-42.69546724,0.00023915,2]
[391320494,1760520638006,-318.8789304,0.00023963,2]
[391320495,1760520638053,-626.41221792,0.00023963,2]
[391320496,1760520638069,-920.0,0.00023963,2]
[391320497,1760520638111,-45.74567148,0.00023963,2]
[391320498,1760520638123,-1200.0,0.00023989,2]
[391320499,1760520638132,-1115.97337673,0.0002399,2]
[391320500,1760520638142,-225.7922172,0.00024068,2]
[391320501,1760520638153,-300.0,0.00024474,2]
[391320502,1760520638162,-2302.08953731,0.00024476,2]
[391320503,1760520638171,-1540.57800823,0.00024476,2]
[391320504,1760520638181,-423.97863795,0.00024496,2]
[391320505,1760520638191,-195.0,0.00024515,2]
[391320506,1760520638201,-4120.55649375,0.000246,3]
[391320507,1760520638210,-2071.97018116,0.00024604,3]
[391320508,1760520638222,-6169.08981884,0.00024604,3]
[391320509,1760520638232,-4120.53,0.00024713,3]
[391320510,1760520638242,-258.92058646,0.0002479,2]
[391320511,1760520638251,-258.92058646,0.00024795,2]
[391320512,1760520638261,-1000.0,0.000248,2]
[391320513,1760520638270,-2637.97188486,0.000248,2]
[391320514,1760520638280,-2233.56683956,0.000248,2]
[391320515,1760520638290,-258.92058646,0.000248,2]
[391320516,1760520638300,-28679.06065198,0.00024804,3]
[391320517,1760520638309,-500.0,0.00024889,2]
[391320518,1760520638319,-500.0,0.00024889,2]
[391320519,1760520638329,-938.99,0.0002489,3]
[391320520,1760520638338,-782.49,0.0002489,3]
[391320521,1760520638347,-391.25,0.0002489,3]
[391320522,1760520638357,-195.62,0.0002489,3]
[391320523,1760520638366,-586.9,0.0002489,3]
[391320524,1760520638380,-1670.20609844,0.0002489,2]
[391320525,1760520638392,-2260.0964508,0.0002489,2]
[391320526,1760520638403,-2707.58632262,0.0002489,2]
[391320560,1760520640194,-329.1,0.0002489,2]
[391321003,1760520646184,-4183.3,0.0002489,2]
[391321166,1760520730776,507.71488171,0.00030474,60]
[391321183,1760520788959,506.78567,0.00030474,30]
[391321184,1760520800533,506.52905197,0.00030474,60]
[391321186,1760520866784,504.15970515,0.00030474,60]
[391321187,1760520870399,503.70985294,0.00030474,60]
[391321188,1760520879203,512.25270036,0.00030474,60]
[391321189,1760520896958,500.0,0.00030474,60]
[391321190,1760520897204,524.17878038,0.00030474,60]
[391321192,1760520934753,500.0,0.00030474,60]
[391321193,1760520935033,500.0,0.00030474,60]
[391321194,1760520935293,514.48560491,0.00030474,60]
[391321195,1760520940710,500.0,0.00030474,60]
[391321196,1760520940954,500.0,0.00030474,60]
[391321197,1760520941200,508.67911369,0.00030474,60]
[391321199,1760520943483,502.89375887,0.00030474,60]
[391321200,1760520947707,501.09318548,0.00030474,30]
[391321202,1760520965942,500.0,0.00030474,60]
[391321203,1760520966234,648.13738708,0.00030474,60]
[391321204,1760520972872,1134.34,0.00030474,60]
[391321205,1760520973249,1134.34,0.00030474,60]
[391321206,1760520973508,1134.34,0.00030474,60]
[391321207,1760520973762,1134.34,0.00030474,60]
[391321208,1760520973995,1134.34,0.00030474,60]
[391321209,1760520974263,1134.34,0.00030474,60]
[391321210,1760520974499,1134.34,0.00030474,60]
[391321211,1760520974750,1134.34,0.00030474,60]
[391321212,1760520975008,1134.34,0.00030474,60]
[391321213,1760520975753,1134.34,0.00030474,60]
[391321214,1760520976018,1134.34,0.00030474,60]
[391321215,1760520976422,1134.34,0.00030474,60]
[391321216,1760520976526,1134.34,0.00030474,60]
[391321217,1760520976794,1134.34,0.00030474,60]
[391321218,1760520977058,1134.34,0.00030474,60]
[391321219,1760520977292,1134.34,0.00030474,60]
[391321220,1760520977549,1134.34,0.00030474,60]
[391321221,1760520977799,1134.34,0.00030474,60]
[391321222,1760520978129,1134.34,0.00030474,60]
[391321223,1760520978365,1134.34,0.00030474,60]
[391321224,1760520978616,1134.34,0.00030474,60]
[391321225,1760520978860,1134.34,0.00030474,60]
[391321226,1760520979110,1134.34,0.00030474,60]
[391321227,1760520992354,1134.45109678,0.00030474,60]
[391321228,1760520996367,500.0,0.00030474,60]
[391321229,1760520996630,500.0,0.00030474,60]
[391321230,1760520996906,193.8165728,0.00030474,60]
[391321231,1760520996966,500.0,0.00030474,60]
[391321232,1760520997219,500.0,0.00030474,60]
[391321233,1760520997503,500.0,0.00030474,60]
[391321234,1760520997757,500.0,0.00030474,60]
[391321235,1760520997990,500.0,0.00030474,60]
[391321236,1760520998256,500.0,0.00030474,60]
[391321237,1760520998527,580.10524315,0.00030474,60]
[391321238,1760521026746,508.63237939,0.00030478,60]
[391321239,1760521032522,557.26812971,0.00030478,60]
[391321240,1760521037608,507.13034479,0.00030478,60]
[391321241,1760521044806,500.0,0.00030478,60]
[391321242,1760521045043,275.58125418,0.00030478,60]
[391321243,1760521071695,506.28933835,0.00030478,60]
[391321246,1760521091388,536.07559032,0.00030478,60]
[391321248,1760521096296,500.0,0.00030478,60]
[391321249,1760521096542,509.55449231,0.00030478,60]
[391321250,1760521102964,500.0,0.00030478,60]
[391321251,1760521103198,500.0,0.00030478,60]
[391321252,1760521103456,500.0,0.00030478,60]
[391321253,1760521103730,482.93642994,0.00030478,60]
[391321254,1760521107219,500.0,0.00030478,60]
[391321255,1760521107472,241.1797732,0.00030478,60]
[391321256,1760521109366,591.09175174,0.00030478,60]
[391321257,1760521111928,500.0,0.00030478,60]
[391321258,1760521112163,513.84320057,0.00030478,60]
[391321259,1760521117174,590.82,0.00030478,60]
[391321260,1760521117386,590.82,0.00030478,60]
[391321261,1760521117613,590.82,0.00030478,60]
[391321262,1760521117859,590.82,0.00030478,60]
[391321263,1760521118085,590.82,0.00030478,60]
[391321264,1760521118315,590.82,0.00030478,60]
[391321265,1760521118548,590.82,0.00030478,60]
[391321266,1760521118783,590.82,0.00030478,60]
[391321267,1760521119047,590.82,0.00030478,60]
[391321268,1760521119309,590.82,0.00030478,60]
[391321269,1760521119536,590.82,0.00030478,60]
[391321270,1760521119782,590.82,0.00030478,60]
[391321271,1760521120047,590.82,0.00030478,60]
[391321272,1760521120277,590.82,0.00030478,60]
[391321273,1760521120539,590.82,0.00030478,60]
[391321274,1760521120773,590.82,0.00030478,60]
[391321275,1760521121080,590.82,0.00030478,60]
[391321276,1760521121269,590.82,0.00030478,60]
[391321277,1760521121551,590.82,0.00030478,60]
[391321278,1760521121943,590.82,0.00030478,60]
[391321279,1760521122121,590.82,0.00030478,60]
[391321280,1760521122396,590.82,0.00030478,60]
[391321281,1760521122639,590.82,0.00030478,60]
[391321282,1760521122879,590.82505777,0.00030478,60]
[391321284,1760521126309,500.0,0.00030478,60]
[391321285,1760521126576,508.32976636,0.00030478,60]
[391321286,1760521134202,506.44938205,0.00030478,60]
[391321287,1760521136233,516.88054906,0.00030478,60]
[391321288,1760521138407,520.1735498,0.00030478,60]
[391321289,1760521145316,500.0,0.00030478,60]
[391321290,1760521152264,502.56590016,0.00030478,60]
[391321291,1760521155857,151.22536122,0.00030478,30]
[391321292,1760521157856,512.5900824,0.00030478,60]
[391321293,1760521254027,507.28002864,0.00030478,60]
[391321294,1760521261472,500.0,0.00030478,60]
[391321295,1760521261711,172.46674531,0.00030478,60]
[391321296,1760521263755,500.0,0.00030478,60]
[391321297,1760521263993,500.0,0.00030478,60]
[391321298,1760521264273,513.33194732,0.00030478,60]
[391321299,1760521274941,502.88639896,0.00030478,60]
[391321300,1760521283291,500.0,0.00030478,60]
[391321301,1760521283362,503.38040845,0.00030478,60]
[391321302,1760521283547,500.0,0.00030478,60]
[391321303,1760521283882,515.59999187,0.00030478,60]
[391321304,1760521286725,500.0,0.00030478,60]
[391321305,1760521286954,500.0,0.00030478,60]
[391321306,1760521287224,513.94715893,0.00030478,60]
[391321307,1760521296123,500.0,0.00030478,60]
[391321308,1760521296371,487.82696331,0.00030478,60]
[391321309,1760521298309,500.0,0.00030478,60]
[391321310,1760521298742,500.0,0.00030478,60]
[391321311,1760521298990,198.57046267,0.00030478,60]
[391321312,1760521299772,522.75754896,0.00030478,60]
[391321313,1760521313319,500.0,0.00030497,60]
[391321314,1760521313747,392.38104434,0.00030497,60]
[391321315,1760521316060,500.0,0.00030497,60]
[391321316,1760521316303,500.0,0.00030497,60]
[391321317,1760521316523,249.82407596,0.00030497,60]
[391321318,1760521328356,500.0,0.00030497,60]
[391321319,1760521328665,500.0,0.00030497,60]
[391321320,1760521328933,303.07390492,0.00030497,60]
[391321321,1760521330954,510.98562305,0.00030497,60]
[391321322,1760521346325,507.51312909,0.00030497,60]
[391321327,1760521634132,-1595.29055953,0.00020299,2]
[391321328,1760521634151,-150.0,0.00020504,2]
[391321329,1760521634170,-172.5,0.00021104,2]
[391321330,1760521634190,-195.0,0.00021704,2]
[391321331,1760521634209,-217.5,0.00022304,2]
[391321332,1760521634230,-240.0,0.00022904,2]
[391321333,1760521634250,-204.9700191,0.00023504,2]
[391321334,1760521717672,245.76540803,0.00030497,60]
[391321336,1760521804423,500.68047898,0.00030497,60]
[391321384,1760521832475,-574.45401753,0.000234,2]
[391321386,1760521832485,-57.5299809,0.00023504,2]
[391321389,1760521832494,-5052.2620569,0.00023766,2]
[391321391,1760521832504,-500.0,0.000238,2]
[391321393,1760521832513,-1200.0,0.00023998,2]
[391321395,1760521832522,-300.0,0.00023999,2]
[391321397,1760521832531,-300.0,0.00023999,2]
[391321399,1760521832539,-300.0,0.00023999,2]
[391321401,1760521832548,-300.0,0.00023999,2]
[391321403,1760521832557,-15143.41667599,0.00024,2]
[391321405,1760521832566,-1200.0,0.00024103,2]
[391321407,1760521832575,-285.0,0.00024104,2]
[391321409,1760521832584,-1155.43350617,0.00024476,2]
[391321411,1760521832593,-2530.3406795,0.00024542,2]
[391321413,1760521832602,-959.3406927,0.00024542,2]
[391321415,1760521832612,-1765.95,0.00024585,3]
[391321417,1760521832620,-5297.82,0.000246,3]
[391321419,1760521832629,-2846.6524002,0.00024614,2]
[391321421,1760521832638,-752.7559676,0.00024614,2]
[391321423,1760521832647,-9076.1539289,0.00024614,2]
[391321425,1760521832656,-151.0,0.00024614,7]
[391321427,1760521832665,-151.0,0.00024614,7]
[391321429,1760521832673,-151.0,0.00024614,7]
[391321431,1760521832682,-162.462016,0.00024614,7]
[391321433,1760521832691,-162.462016,0.00024614,7]
[391321435,1760521832700,-151.0,0.00024614,7]
[391321437,1760521832710,-162.462016,0.00024614,7]
[391321439,1760521832719,-162.462016,0.00024614,7]
[391321441,1760521832728,-151.0,0.00024614,7]
[391321443,1760521832737,-151.0,0.00024614,7]
[391321445,1760521832746,-243.366332,0.00024614,7]
[391321447,1760521832755,-151.0,0.00024614,7]
[391321449,1760521832763,-151.0,0.00024614,7]
[391321451,1760521832773,-151.0,0.00024614,7]
[391321453,1760521832782,-151.0,0.00024614,7]
[391321455,1760521832791,-151.000001,0.00024614,7]
[391321457,1760521832800,-151.0,0.00024614,7]
[391321459,1760521832811,-151.0,0.00024614,7]
[391321461,1760521832822,-224.382,0.00024614,7]
[391321463,1760521832831,-151.0,0.00024614,7]
[391321465,1760521832840,-3723.95184965,0.00024699,2]
[391321467,1760521832850,-500.0,0.00024699,2]
[391321469,1760521832859,-151.0,0.00024699,7]
[391321471,1760521832868,-213.257511,0.00024699,7]
[391321473,1760521832877,-151.0,0.00024699,7]
[391321475,1760521832886,-155.891026,0.00024699,7]
[391321477,1760521832895,-151.0,0.00024699,7]
[391321479,1760521832904,-151.0,0.00024699,7]
[391321481,1760521832914,-235.791665,0.00024699,7]
[391321483,1760521832923,-151.0,0.00024699,7]
[391321485,1760521832932,-151.0,0.00024699,7]
[391321487,1760521832942,-2.47622672,0.00024699,7]
[391321598,1760521838202,-148.52377328,0.00024699,7]
[391321599,1760521838212,-151.0,0.00024699,7]
[391321600,1760521838221,-1489.04455972,0.00024699,2]
[391321601,1760521838231,-2110.37750788,0.00024699,2]
[391321602,1760521838240,-307.5,0.00024704,2]
[391321603,1760521838249,-83.26894818,0.00024773,7]
[391321604,1760521838262,-67.73105182,0.00024773,7]
[391321605,1760521838271,-151.0,0.00024773,7]
[391321606,1760521838281,-909.51102298,0.00024773,10]
[391321607,1760521838292,-1341.21897702,0.00024773,10]
[391321608,1760521838301,-151.0,0.00024779,2]
[391321609,1760521838311,-210.63760204,0.00024779,2]
[391321610,1760521838320,-250.0,0.00024779,2]
[391321611,1760521838330,-250.0,0.00024779,2]
[391321612,1760521838339,-151.0,0.00024779,2]
[391321613,1760521838349,-270.52925111,0.00024779,2]
[391321614,1760521838358,-73.69196301,0.00024779,2]
[391321615,1760521838371,-77.30803699,0.00024779,2]
[391321616,1760521838381,-250.0,0.00024779,2]
[391321617,1760521838390,-151.0,0.00024779,2]
[391321618,1760521838400,-250.0,0.00024779,2]
[391321619,1760521838411,-151.0,0.00024779,2]
[391321621,1760521838420,-250.0,0.00024779,2]
[391321622,1760521838430,-151.0,0.00024779,2]
[391321623,1760521838439,-250.0,0.00024779,2]
[391321624,1760521838448,-151.0,0.00024779,2]
[391321625,1760521838458,-250.0,0.00024779,2]
[391321626,1760521838467,-164.98857432,0.00024779,2]
[391321627,1760521838476,-151.0,0.00024779,2]
[391321628,1760521838485,-250.0,0.00024779,2]
[391321629,1760521838495,-151.0,0.00024779,2]
[391321630,1760521838504,-151.0,0.00024779,2]
[391321631,1760521838514,-250.0,0.00024779,2]
[391321632,1760521838523,-290.42454388,0.00024779,2]
[391321633,1760521838532,-151.0,0.00024779,2]
[391321634,1760521838542,-151.0,0.00024779,2]
[391321635,1760521838551,-250.0,0.00024779,2]
[391321636,1760521838560,-155.91597635,0.00024779,2]
[391321637,1760521838569,-151.0,0.00024779,2]
[391321638,1760521838578,-250.0,0.00024779,2]
[391321639,1760521838588,-151.0,0.00024779,2]
[391321640,1760521838599,-250.0,0.00024779,2]
[391321641,1760521838608,-151.0,0.00024779,2]
[391321642,1760521838618,-250.0,0.00024779,2]
[391321643,1760521838628,-151.0,0.00024779,2]
[391321644,1760521838637,-250.0,0.00024779,2]
[391321645,1760521838647,-151.0,0.00024779,2]
[391321646,1760521838657,-250.0,0.00024779,2]
[391321647,1760521838668,-151.0,0.00024779,2]
[391321648,1760521838681,-250.0,0.00024779,2]
[391321649,1760521838692,-151.0,0.00024779,2]
[391321650,1760521838702,-250.0,0.00024779,2]
[391321651,1760521838712,-191.54568885,0.00024779,2]
[391321652,1760521838720,-250.0,0.00024779,2]
[391321653,1760521838729,-252.56477,0.00024779,2]
[391321654,1760521838739,-18603.8837,0.00024779,2]
[391321655,1760521838748,-151.0,0.00024783,7]
[391321656,1760521838757,-152.838296,0.00024783,7]
[391321657,1760521838766,-188.47372,0.00024783,7]
[391321658,1760521838775,-726.02,0.00024783,3]
[391321659,1760521838784,-363.01,0.00024783,3]
[391321660,1760521838793,-162.462016,0.00024783,7]
[391321661,1760521838803,-181.51,0.00024783,3]
[391321662,1760521838824,-162.462016,0.00024783,7]
[391321663,1760521838833,-151.0,0.00024783,7]
[391321664,1760521838843,-162.462016,0.00024783,7]
[391321665,1760521838852,-162.462016,0.00024783,7]
[391321666,1760521838864,-544.53,0.00024783,3]
[391321667,1760521838877,-181.930076,0.00024783,7]
[391321668,1760521838886,-151.0,0.00024783,7]
[391321669,1760521838895,-151.0,0.00024783,7]
[391321670,1760521838904,-151.0,0.00024783,7]
[391321671,1760521838916,-151.0,0.00024783,7]
[391321672,1760521838925,-151.0,0.00024783,7]
[391321673,1760521838934,-151.0,0.00024783,7]